[Event "Kragero Resort Chess A 2019"]
[Site "Kragero"]
[Date "2019.02.24"]
[Round "9.22"]
[White "Aarnes, Eirik"]
[Black "Kizatbay, Abyl"]
[Result "0-1"]
[ECO "B67"]
[WhiteElo "1843"]
[BlackElo "2084"]
[Annotator "NA RC"]
[PlyCount "76"]
[EventDate "2019.02.20"]
[EventType "swiss"]
[EventCountry "NOR"]
[SourceTitle "playchess.com"]
[Source "ChessBase"]
[SourceQuality "1"]
[TimeControl "5400+30"]

1. e4 {[%emt 0:00:00]} c5 {[%emt 0:00:00]} 2. Nf3 {[%emt 0:00:00]} Nc6 {[%emt 0:00:00]} 3. d4 {[%emt 0:00:00]} cxd4 {[%emt 0:00:00]} 4. Nxd4 {[%emt 0:00:00]} Nf6 {[%emt 0:00:00]} 5. Nc3 {[%emt 0:00:01]} d6 {[%emt 0:00:00]} 6. Bg5 {[%emt 0:02:45]} e6 {[%emt 0:00:51]} 7. Qd2 {[%emt 0:01:15]} a6 {[%emt 0:00:03]} 8. O-O-O {[%emt 0:00:44]} Bd7 {[%emt 0:00:04]} 9. f4 {[%emt 0:02:39]} b5 {[%emt 0:01:05]} 10. e5 {[%emt 0:17:18]} dxe5 {[%emt 0:04:40]} 11. Nxc6 {[%emt 0:00:58]} Bxc6 {[%emt 0:00:20]} 12. Qxd8+ {[%emt 0:00:41]} Rxd8 {[%emt 0:00:04]} 13. Rxd8+ {[%emt 0:00:10]} Kxd8 {[%emt 0:00:04]} 14. fxe5 {[%emt 0:00:09]} h6 {[%emt 0:00:17]} 15. Bxf6+ {[%emt 0:05:58]} gxf6 {[%emt 0:00:05]} 16. exf6 {[%emt 0:00:08]} Bd6 {[%emt 0:08:54]} 17. Bd3 {[%emt 0:02:50]} Bxg2 {[%emt 0:05:29]} 18. Rg1 {[%emt 0:00:57]} Bc6 {[%emt 0:08:47]} 19. h4 {[%emt 0:13:42]} Bf4+ {[%emt 0:04:49]} 20. Kb1 {[%emt 0:04:01]} Be5 {[%emt 0:02:15]} 21. Be4 {[%emt 0:04:15]} Bd7 {[%emt 0:01:21]} 22. Bb7 {[%emt 0:01:08]} Kc7 {[%emt 0:01:47]} 23. Rd1 {[%emt 0:08:50]} Rb8 {[%emt 0:04:07]} 24. Be4 {[%emt 0:07:43]} Bxf6 {[%emt 0:02:41]} 25. Rf1 {[%emt 0:00:21]} Bxc3 {[%emt 0:00:43]} 26. bxc3 {[%emt 0:00:06]} f5 {[%emt 0:00:04]} 27. Bd3 {[%emt 0:01:33]} Rg8 {[%emt 0:02:26]} 28. c4 {[%emt 0:03:45]} Rg4 {[%emt 0:02:57]} 29. cxb5 {[%emt 0:00:12]} axb5 {[%emt 0:00:27]} 30. h5 {[%emt 0:01:05]} Rh4 {[%emt 0:01:12]} 31. Be2 {[%emt 0:00:07]} Rh2 {[%emt 0:03:26]} 32. Re1 {[%emt 0:00:15]} e5 {[%emt 0:02:45]} 33. Kb2 {[%emt 0:01:02]} Kb6 {[%emt 0:11:35]} 34. Bd1 {[%emt 0:05:27]} e4 {[%emt 0:00:48]} 35. Kc3 {[%emt 0:00:50]} Kc5 {[%emt 0:01:21]} 36. Rf1 {[%emt 0:00:36]} b4+ {[%emt 0:01:06]} 37. Kb2 {[%emt 0:00:26]} e3 {[%emt 0:01:05]} 38. Bf3 {[%emt 0:01:00]} Rf2 {[%emt 0:00:51]} 0-1

[Event "Kragero Resort Chess A 2019"]
[Site "Kragero"]
[Date "2019.02.24"]
[Round "9.27"]
[White "Birkisson, Bjorn Holm"]
[Black "Skaslien, Ingrid"]
[Result "1-0"]
[ECO "A47"]
[WhiteElo "2078"]
[BlackElo "1828"]
[Annotator "NA RC"]
[PlyCount "67"]
[EventDate "2019.02.20"]
[EventType "swiss"]
[EventCountry "NOR"]
[SourceTitle "playchess.com"]
[Source "ChessBase"]
[SourceQuality "1"]
[TimeControl "5400+30"]

1. d4 {[%emt 0:02:38]} Nf6 {[%emt 0:00:00]} 2. Bf4 {[%emt 0:00:34]} e6 {[%emt 0:01:03]} 3. e3 {[%emt 0:00:58]} b6 {[%emt 0:01:53]} 4. Nf3 {[%emt 0:00:47]} Bb7 {[%emt 0:00:27]} 5. Nbd2 {[%emt 0:00:15]} Be7 {[%emt 0:01:38]} 6. Bd3 {[%emt 0:00:34]} O-O {[%emt 0:01:00]} 7. h3 {[%emt 0:03:20]} c5 {[%emt 0:05:53]} 8. c3 {[%emt 0:00:20]} d6 {[%emt 0:02:24]} 9. O-O {[%emt 0:00:45]} Nbd7 {[%emt 0:02:27]} 10. e4 {[%emt 0:00:42]} cxd4 {[%emt 0:07:22]} 11. cxd4 {[%emt 0:00:38]} d5 {[%emt 0:00:53]} 12. e5 {[%emt 0:00:16]} Ne4 {[%emt 0:03:22]} 13. Qb1 {[%emt 0:00:25]} f5 {[%emt 0:07:46]} 14. exf6 {[%emt 0:01:06]} Ndxf6 {[%emt 0:00:27]} 15. Be5 {[%emt 0:01:41]} Bd6 {[%emt 0:06:18]} 16. Re1 {[%emt 0:00:59]} Bxe5 {[%emt 0:04:40]} 17. dxe5 {[%emt 0:01:05]} Nh5 {[%emt 0:01:00]} 18. Nxe4 {[%emt 0:01:08]} dxe4 {[%emt 0:00:15]} 19. Bxe4 {[%emt 0:00:12]} Bxe4 {[%emt 0:00:22]} 20. Qxe4 {[%emt 0:00:18]} Nf4 {[%emt 0:00:37]} 21. Kh2 {[%emt 0:02:39]} Qe8 {[%emt 0:04:24]} 22. g3 {[%emt 0:01:54]} Ng6 {[%emt 0:03:04]} 23. Re2 {[%emt 0:04:45]} Rd8 {[%emt 0:03:16]} 24. Rc1 {[%emt 0:09:07]} Rd5 {[%emt 0:04:22]} 25. Rc7 {[%emt 0:05:54]} a6 {[%emt 0:04:50]} 26. Qg4 {[%emt 0:07:27]} Rf7 {[%emt 0:13:15]} 27. Rxf7 {[%emt 0:01:17]} Qxf7 {[%emt 0:00:31]} 28. Ng5 {[%emt 0:02:23]} Qe8 {[%emt 0:03:17]} 29. Nxe6 {[%emt 0:02:54]} Qf7 {[%emt 0:05:15]} 30. Ng5 {[%emt 0:03:11]} Qe7 {[%emt 0:01:50]} 31. Qc4 {[%emt 0:01:17]} Qd8 {[%emt 0:01:57]} 32. Rd2 {[%emt 0:00:43]} Ne7 {[%emt 0:00:51]} 33. Rxd5 {[%emt 0:01:08]} Qxd5 {[%emt 0:00:53]} 34. Qxd5+ {[%emt 0:00:50]} 1-0

[Event "Kragero Resort Chess A 2019"]
[Site "Kragero"]
[Date "2019.02.24"]
[Round "9.28"]
[White "Harstad, Christian"]
[Black "Jonsson, Gauti Pall"]
[Result "0-1"]
[ECO "A85"]
[WhiteElo "1948"]
[BlackElo "2070"]
[Annotator "NA RC"]
[PlyCount "104"]
[EventDate "2019.02.20"]
[EventType "swiss"]
[EventCountry "NOR"]
[SourceTitle "playchess.com"]
[Source "ChessBase"]
[SourceQuality "1"]
[TimeControl "5400+30"]

1. d4 {[%emt 0:00:00]} e6 {[%emt 0:00:33]} 2. c4 {[%emt 0:01:03]} f5 {[%emt 0:00:47]} 3. Nc3 {[%emt 0:01:23]} Nf6 {[%emt 0:00:32]} 4. e3 {[%emt 0:05:23]} Bb4 {[%emt 0:01:18]} 5. Bd3 {[%emt 0:02:16]} b6 {[%emt 0:02:02]} 6. Nf3 {[%emt 0:04:41]} Bb7 {[%emt 0:03:33]} 7. Qc2 {[%emt 0:01:10]} O-O {[%emt 0:00:52]} 8. a3 {[%emt 0:05:26]} Bxc3+ {[%emt 0:00:56]} 9. bxc3 {[%emt 0:00:10]} Nc6 {[%emt 0:04:51]} 10. Rb1 {[%emt 0:12:09]} Na5 {[%emt 0:01:26]} 11. c5 {[%emt 0:22:54]} Qe8 {[%emt 0:06:09]} 12. O-O {[%emt 0:08:05]} Qg6 {[%emt 0:09:33]} 13. Ne1 {[%emt 0:01:01]} d6 {[%emt 0:01:55]} 14. c4 {[%emt 0:04:48]} dxc5 {[%emt 0:01:47]} 15. Bd2 {[%emt 0:06:52]} Nc6 {[%emt 0:00:22]} 16. Bc3 {[%emt 0:01:06]} cxd4 {[%emt 0:01:42]} 17. exd4 {[%emt 0:00:15]} Ne7 {[%emt 0:00:46]} 18. f3 {[%emt 0:02:57]} Rad8 {[%emt 0:02:08]} 19. Qe2 {[%emt 0:01:42]} Nh5 {[%emt 0:02:22]} 20. Qe3 {[%emt 0:01:28]} Kh8 {[%emt 0:01:13]} 21. d5 {[%emt 0:00:47]} Rfe8 {[%emt 0:04:47]} 22. dxe6 {[%emt 0:04:16]} Rd6 {[%emt 0:02:41]} 23. c5 {[%emt 0:02:59]} Rxe6 {[%emt 0:01:02]} 24. Qc1 {[%emt 0:01:03]} Nd5 {[%emt 0:01:25]} 25. Bd2 {[%emt 0:00:59]} Ne3 {[%emt 0:00:56]} 26. Bxe3 {[%emt 0:00:30]} Rxe3 {[%emt 0:00:07]} 27. cxb6 {[%emt 0:00:29]} cxb6 {[%emt 0:05:16]} 28. Bb5 {[%emt 0:01:24]} R8e7 {[%emt 0:01:58]} 29. Nc2 {[%emt 0:00:41]} R3e5 {[%emt 0:01:25]} 30. Nd4 {[%emt 0:01:21]} h6 {[%emt 0:02:39]} 31. Qd2 {[%emt 0:02:05]} Qd6 {[%emt 0:01:21]} 32. Qb4 {[%emt 0:01:44]} Qg6 {[%emt 0:02:26]} 33. Rfe1 {[%emt 0:00:36]} Nf4 {[%emt 0:01:52]} 34. g3 {[%emt 0:00:39]} Rxe1+ {[%emt 0:01:23]} 35. Rxe1 {[%emt 0:00:16]} Rxe1+ {[%emt 0:00:08]} 36. Qxe1 {[%emt 0:00:10]} Qd6 {[%emt 0:01:10]} 37. Qe8+ {[%emt 0:01:36]} Kh7 {[%emt 0:01:06]} 38. Qe3 {[%emt 0:00:33]} Ng6 {[%emt 0:03:24]} 39. Bd3 {[%emt 0:00:37]} Qxa3 {[%emt 0:01:24]} 40. Nxf5 {[%emt 0:00:46]} Ba6 {[%emt 0:01:19]} 41. Bxa6 {[%emt 0:00:20]} Qxa6 {[%emt 0:00:15]} 42. h4 {[%emt 0:00:21]} Qa1+ {[%emt 0:01:07]} 43. Kh2 {[%emt 0:00:34]} Qb2+ {[%emt 0:00:40]} 44. Kh3 {[%emt 0:00:47]} Qb1 {[%emt 0:00:30]} 45. Nd4 {[%emt 0:00:30]} h5 {[%emt 0:02:02]} 46. Kg2 {[%emt 0:00:44]} Qa2+ {[%emt 0:00:16]} 47. Kh3 {[%emt 0:00:25]} Qd5 {[%emt 0:00:19]} 48. g4 {[%emt 0:00:38]} hxg4+ {[%emt 0:00:13]} 49. Kxg4 {[%emt 0:00:38]} Ne5+ {[%emt 0:01:29]} 50. Kg3 {[%emt 0:00:23]} Nc6 {[%emt 0:01:51]} 51. Nxc6 {[%emt 0:00:49]} Qxc6 {[%emt 0:00:05]} 52. Qd3+ {[%emt 0:00:14]} Qg6+ {[%emt 0:00:12]} 0-1

[Event "Kragero Resort Chess A 2019"]
[Site "Kragero"]
[Date "2019.02.24"]
[Round "9.30"]
[White "Saltvedt, Martin"]
[Black "Shehzad, Shazil"]
[Result "1/2-1/2"]
[ECO "D94"]
[WhiteElo "2095"]
[BlackElo "1959"]
[Annotator "NA RC"]
[PlyCount "34"]
[EventDate "2019.02.20"]
[EventType "swiss"]
[EventCountry "NOR"]
[SourceTitle "playchess.com"]
[Source "ChessBase"]
[SourceQuality "1"]
[TimeControl "5400+30"]

1. d4 {[%emt 0:00:17]} Nf6 {[%emt 0:02:36]} 2. Nf3 {[%emt 0:00:11]} c5 {[%emt 0:00:24]} 3. e3 {[%emt 0:03:03]} g6 {[%emt 0:00:20]} 4. c4 {[%emt 0:01:47]} cxd4 {[%emt 0:00:15]} 5. exd4 {[%emt 0:00:31]} d5 {[%emt 0:00:17]} 6. Nc3 {[%emt 0:00:41]} Bg7 {[%emt 0:00:19]} 7. cxd5 {[%emt 0:07:52]} Nxd5 {[%emt 0:00:42]} 8. Bc4 {[%emt 0:00:04]} Nxc3 {[%emt 0:00:13]} 9. bxc3 {[%emt 0:00:09]} O-O {[%emt 0:00:06]} 10. O-O {[%emt 0:00:18]} Qc7 {[%emt 0:00:49]} 11. Qb3 {[%emt 0:17:44]} e6 {[%emt 0:02:25]} 12. Ba3 {[%emt 0:02:10]} Re8 {[%emt 0:00:57]} 13. Rfe1 {[%emt 0:00:46]} Nc6 {[%emt 0:08:50]} 14. Bf1 {[%emt 0:02:49]} Bd7 {[%emt 0:02:02]} 15. Rad1 {[%emt 0:03:32]} Rac8 {[%emt 0:02:24]} 16. Qc2 {[%emt 0:10:57]} Na5 {[%emt 0:03:23]} 17. Ne5 {[%emt 0:07:16]} Nc6 {[%emt 0:19:08]} 1/2-1/2

[Event "Kragero Resort Chess A 2019"]
[Site "Kragero"]
[Date "2019.02.24"]
[Round "9.31"]
[White "Nilsen, Jarle"]
[Black "Unneland, Mathias"]
[Result "1-0"]
[ECO "A48"]
[WhiteElo "1845"]
[BlackElo "1890"]
[Annotator "NA RC"]
[PlyCount "51"]
[EventDate "2019.02.20"]
[EventType "swiss"]
[EventCountry "NOR"]
[SourceTitle "playchess.com"]
[Source "ChessBase"]
[SourceQuality "1"]
[TimeControl "5400+30"]

1. d4 {[%emt 0:00:00]} Nf6 {[%emt 0:00:00]} 2. c4 {[%emt 0:00:00]} g6 {[%emt 0:00:00]} 3. Nc3 {[%emt 0:00:00]} Bg7 {[%emt 0:00:00]} 4. Nf3 {[%emt 0:00:00]} O-O {[%emt 0:00:00]} 5. Bf4 {[%emt 0:00:00]} d6 {[%emt 0:00:28]} 6. h3 {[%emt 0:00:00]} c6 {[%emt 0:00:33]} 7. e3 {[%emt 0:00:00]} Nbd7 {[%emt 0:00:41]} 8. Be2 {[%emt 0:00:06]} Qe8 {[%emt 0:08:53]} 9. O-O {[%emt 0:00:34]} e5 {[%emt 0:01:08]} 10. Bh2 {[%emt 0:00:22]} Qe7 {[%emt 0:00:45]} 11. Re1 {[%emt 0:00:48]} Ne8 {[%emt 0:04:34]} 12. Rc1 {[%emt 0:09:40]} f5 {[%emt 0:03:25]} 13. b4 {[%emt 0:03:08]} a5 {[%emt 0:01:50]} 14. b5 {[%emt 0:04:04]} Nc7 {[%emt 0:02:08]} 15. bxc6 {[%emt 0:11:03]} bxc6 {[%emt 0:00:09]} 16. Na4 {[%emt 0:03:42]} Na6 {[%emt 0:03:24]} 17. c5 {[%emt 0:04:58]} dxc5 {[%emt 0:00:51]} 18. d5 {[%emt 0:03:38]} Rd8 {[%emt 0:06:37]} 19. dxc6 {[%emt 0:01:58]} Ndb8 {[%emt 0:01:46]} 20. Qb3+ {[%emt 0:02:20]} Be6 {[%emt 0:00:41]} 21. Bc4 {[%emt 0:01:22]} Bxc4 {[%emt 0:00:36]} 22. Qxc4+ {[%emt 0:00:02]} Kh8 {[%emt 0:00:13]} 23. Nxc5 {[%emt 0:05:30]} Nb4 {[%emt 0:06:29]} 24. Ne6 {[%emt 0:06:30]} N8xc6 {[%emt 0:01:32]} 25. Nxd8 {[%emt 0:03:15]} Rxd8 {[%emt 0:01:10]} 26. a3 {[%emt 0:01:17]} 1-0